bitfinex/quotes_BTCUSD_20230115
["timestamp","ask_amount","ask_price","bid_price","bid_amount"]
[1673802608110,0.68480254,20898.0,20897.0,1.0436594]
[1673802608405,0.68480254,20898.0,20897.0,1.0642064]
[1673802609245,0.68480254,20898.0,20897.0,1.3642064]
[1673802609533,0.68480254,20898.0,20897.0,1.3436594]
[1673802609796,0.68480254,20898.0,20897.0,1.0436594]
[1673802610831,0.68480254,20898.0,20897.0,0.90043744]
[1673802611092,0.68480254,20898.0,20897.0,1.0436594]
[1673802611342,0.68480254,20898.0,20897.0,0.90043744]
[1673802611594,0.68480254,20898.0,20897.0,1.0436594]
[1673802612352,0.68480254,20898.0,20897.0,0.54043491]
[1673802614105,0.01060254,20898.0,20897.0,1.88447124]
[1673802614366,0.01060254,20898.0,20897.0,2.46698163]
[1673802614621,0.01060254,20898.0,20897.0,2.2046447]
[1673802614904,0.01060254,20898.0,20897.0,2.56269961]
[1673802615210,0.01060254,20898.0,20897.0,2.27625568]
[1673802615948,0.01060254,20898.0,20897.0,2.18799423]
[1673802616216,0.01060254,20898.0,20897.0,1.90155832]
[1673802616483,0.01060254,20898.0,20897.0,2.55625547]
[1673802616737,0.01060254,20898.0,20897.0,2.10155832]
[1673802617803,0.01060254,20898.0,20897.0,1.74342739]
[1673802618069,0.01060254,20898.0,20897.0,2.53437667]
[1673802618309,0.01060254,20898.0,20897.0,2.10142181]
[1673802620955,0.01060254,20898.0,20897.0,2.268688]
[1673802621465,0.01060254,20898.0,20897.0,2.55500161]
[1673802622062,0.01060254,20898.0,20897.0,2.18773542]
[1673802622309,0.01060254,20898.0,20897.0,2.10142181]
[1673802622819,0.01060254,20898.0,20897.0,2.10124361]
[1673802623346,0.01060254,20898.0,20897.0,1.90124361]
[1673802623894,0.01060254,20898.0,20897.0,2.63424436]
[1673802624951,0.01060254,20898.0,20897.0,2.27642814]
[1673802625956,0.01051323,20898.0,20897.0,2.27642814]
[1673802626210,0.01051323,20898.0,20897.0,2.49107876]
[1673802626976,0.01051323,20898.0,20897.0,2.49098928]
[1673802627260,0.01051323,20898.0,20897.0,2.2047281]
[1673802627503,0.01051323,20898.0,20897.0,2.49098928]
[1673802628022,0.01051323,20898.0,20897.0,2.2047281]
[1673802629296,0.01051323,20898.0,20897.0,2.3478085]
[1673802630075,0.01051323,20898.0,20897.0,2.23020002]
[1673802631095,0.01051323,20898.0,20897.0,2.20350477]
[1673802631346,0.01051323,20898.0,20897.0,2.34657548]
[1673802632358,0.01051323,20898.0,20897.0,2.34656937]
[1673802632865,0.01051323,20898.0,20897.0,2.23018422]
[1673802633135,0.01051323,20898.0,20897.0,2.0155336]
[1673802633417,0.01051323,20898.0,20897.0,2.20347382]
[1673802633693,0.04403388,20898.0,20897.0,2.20347382]
[1673802633920,0.04403388,20898.0,20897.0,2.34653786]
[1673802634433,0.04403388,20898.0,20897.0,2.23018366]
[1673802634781,0.04403388,20898.0,20897.0,1.93773304]
[1673802634977,0.04403388,20898.0,20897.0,1.774122]
[1673802635745,0.04403388,20898.0,20897.0,1.93773304]
[1673802635992,0.04403388,20898.0,20897.0,1.91718604]
[1673802636251,0.04403388,20898.0,20897.0,1.774122]
[1673802637018,0.04403388,20898.0,20897.0,1.794669]
[1673802637819,0.04403388,20898.0,20897.0,1.79454353]
[1673802638610,0.04403388,20898.0,20897.0,1.93760757]
[1673802638897,0.50121477,20903.0,20897.0,0.25240891]
[1673802639134,0.00997395,20905.0,20897.0,0.25240891]
[1673802639135,0.00997395,20905.0,20901.0,0.14308263]
[1673802639390,0.00997395,20905.0,20902.0,0.56896553]
[1673802639650,0.00997395,20905.0,20904.0,0.35770658]
[1673802639925,0.00997395,20905.0,20904.0,1.80197895]
[1673802640159,0.00997395,20905.0,20904.0,2.27378293]
[1673802640671,0.01197395,20905.0,20904.0,2.27378293]
[1673802640928,0.00997395,20905.0,20904.0,2.27378293]
[1673802641235,0.01197395,20905.0,20904.0,2.34078293]
[1673802643239,0.01197395,20905.0,20904.0,2.26298293]
[1673802648172,0.01197395,20905.0,20904.0,2.108953]
[1673802648435,0.01197395,20905.0,20904.0,2.186053]
[1673802648697,0.53889435,20905.0,20904.0,2.32913563]
[1673802648972,0.53889435,20905.0,20904.0,2.46552639]
[1673802653604,0.53889435,20905.0,20904.0,1.986053]
[1673802653857,0.53889435,20905.0,20904.0,2.39223371]
[1673802654405,0.53889435,20905.0,20904.0,2.53531634]
[1673802654938,0.53889435,20905.0,20904.0,2.39223371]
[1673802659716,0.53889435,20905.0,20904.0,1.986053]
[1673802659972,0.53889435,20905.0,20904.0,2.65137191]
[1673802660224,0.53889435,20905.0,20904.0,2.9421769]
[1673802660489,0.53889435,20905.0,20904.0,2.50828928]
[1673802661252,0.53889435,20905.0,20904.0,2.59392078]
[1673802661514,0.53889435,20905.0,20904.0,3.04518229]
[1673802661769,0.53883077,20905.0,20904.0,2.90174564]
[1673802662034,0.53883077,20905.0,20904.0,2.45047955]
[1673802662539,0.53883077,20905.0,20904.0,2.30775551]
[1673802662793,0.53883077,20905.0,20904.0,2.50775551]
[1673802663313,0.53883077,20905.0,20904.0,2.5798306]
[1673802663563,0.53883077,20905.0,20904.0,2.79387425]
[1673802663816,0.37377138,20905.0,20904.0,2.93753719]
[1673802664328,0.37377138,20905.0,20904.0,2.5798306]
[1673802664607,0.37377138,20905.0,20904.0,2.79383002]
[1673802666395,0.37377138,20905.0,20904.0,2.5798306]
[1673802666642,0.37377138,20905.0,20904.0,2.79380571]
[1673802669772,0.37377138,20905.0,20904.0,2.5798306]
[1673802670033,0.37377138,20905.0,20904.0,2.93753719]
[1673802670280,0.37377138,20905.0,20904.0,3.35137192]
[1673802671877,0.01394198,20908.0,20905.0,0.16773391]
[1673802672130,0.01394198,20908.0,20907.0,0.79742964]
[1673802672409,0.01394198,20908.0,20907.0,2.75752372]
[1673802672667,0.01394198,20908.0,20907.0,2.19064059]
[1673802672911,0.01394198,20908.0,20907.0,2.37608672]
[1673802673442,0.01394198,20908.0,20907.0,2.2334188]
[1673802673739,0.01394198,20908.0,20907.0,2.3534188]
[1673802674011,0.01394198,20908.0,20907.0,2.63881373]
[1673802675865,0.01394198,20908.0,20907.0,2.79016363]
[1673802676126,0.01394198,20908.0,20907.0,2.59016363]
[1673802676425,0.01394198,20908.0,20907.0,2.22476753]
[1673802676691,0.03871229,20908.0,20907.0,2.42476753]
[1673802677191,0.03871229,20908.0,20907.0,2.78150622]
[1673802677693,0.03871229,20908.0,20907.0,2.49611129]
[1673802677957,0.03871229,20908.0,20907.0,2.1393726]
[1673802678207,0.02845211,20908.0,20907.0,2.1393726]
[1673802679522,0.02845211,20908.0,20907.0,2.90260501]
[1673802680047,0.02845211,20908.0,20907.0,2.47584439]
[1673802680363,0.02845211,20908.0,20907.0,2.69027873]
[1673802680578,0.02845211,20908.0,20907.0,2.68177873]
[1673802680802,0.68105211,20908.0,20907.0,2.68177873]
[1673802681023,0.68105211,20908.0,20907.0,2.39586915]
[1673802681321,0.68105211,20908.0,20907.0,2.68177873]
[1673802681577,0.68105211,20908.0,20907.0,2.71108672]
[1673802681829,0.68105211,20908.0,20907.0,2.8764609]
[1673802682087,0.68105211,20908.0,20907.0,2.5275907]
[1673802682595,0.68105211,20908.0,20907.0,2.22128897]
[1673802682848,0.68105211,20908.0,20907.0,1.98526403]
[1673802683113,0.68105211,20908.0,20907.0,2.12823051]
[1673802684460,0.68105211,20908.0,20907.0,2.42823051]
[1673802685211,0.68105211,20908.0,20907.0,2.64268753]
[1673802685823,0.68105211,20908.0,20907.0,2.73694699]
[1673802686046,0.68105211,20908.0,20907.0,2.59394279]
[1673802686485,0.68105211,20908.0,20907.0,2.87985483]
[1673802687466,0.68105211,20908.0,20907.0,2.73697864]
[1673802687725,0.68105211,20908.0,20907.0,2.73702085]
[1673802687991,0.68105211,20908.0,20907.0,2.6427569]
[1673802688257,0.68105211,20908.0,20907.0,2.59397395]
[1673802688502,0.68105211,20908.0,20907.0,2.87988599]
[1673802688754,0.68105211,20908.0,20907.0,2.66542897]
[1673802689816,0.68105211,20908.0,20907.0,2.88000649]
[1673802690971,0.68105211,20908.0,20907.0,2.66542897]
[1673802691956,0.68105211,20908.0,20907.0,2.88005411]
[1673802692244,0.68105211,20908.0,20907.0,2.88005458]
[1673802692772,0.68105211,20908.0,20907.0,2.66542897]
[1673802693024,0.68105211,20908.0,20907.0,2.73688713]
[1673802693270,0.68105211,20908.0,20907.0,3.02313042]
[1673802694102,0.68105211,20908.0,20907.0,3.02313249]
[1673802694361,0.68105211,20908.0,20907.0,2.73688713]
[1673802695128,0.68105211,20908.0,20907.0,3.02318335]
[1673802695377,0.68105211,20908.0,20907.0,2.73688713]
[1673802697469,0.68105211,20908.0,20907.0,2.37951693]
[1673802697917,0.68105211,20908.0,20907.0,2.73750452]
[1673802698170,0.68098269,20908.0,20907.0,2.73750452]
[1673802699697,0.68098269,20908.0,20907.0,3.02400768]
[1673802699950,0.68098269,20908.0,20907.0,6.02400768]
[1673802702996,1.19655472,20908.0,20907.0,3.61983097]
[1673802703287,1.51762372,20908.0,20907.0,0.61983097]
[1673802703538,2.47422735,20908.0,20907.0,0.61983097]
[1673802703811,1.51762372,20908.0,20907.0,0.61983097]
[1673802704051,1.51762372,20908.0,20907.0,0.49983097]
[1673802704308,1.51762372,20908.0,20907.0,0.61183097]
[1673802705091,1.51762372,20908.0,20907.0,0.49983097]
[1673802705329,1.51762372,20908.0,20907.0,0.57183097]
[1673802705587,1.51762372,20908.0,20907.0,0.49983097]
[1673802705858,1.51762372,20908.0,20907.0,0.61183097]
[1673802706112,1.51762372,20908.0,20907.0,0.49983097]
[1673802706473,1.51762372,20908.0,20907.0,0.50183097]
[1673802706642,1.51762372,20908.0,20907.0,0.49983097]
[1673802706891,1.51762372,20908.0,20907.0,0.50783097]
[1673802707416,1.19705472,20908.0,20907.0,0.50783097]
[1673802707939,1.51762372,20908.0,20907.0,0.50783097]
[1673802708200,1.19705472,20908.0,20907.0,0.50783097]
[1673802708702,1.51762372,20908.0,20907.0,0.50783097]
[1673802708968,1.19705472,20908.0,20907.0,0.50783097]
[1673802709225,1.51762372,20908.0,20907.0,0.008]
[1673802709483,1.19705472,20908.0,20907.0,0.008]
[1673802712734,1.19705472,20908.0,20907.0,0.009466]
[1673802713534,1.51762372,20908.0,20907.0,0.009466]
[1673802716538,1.38923972,20908.0,20907.0,0.009466]
[1673802716823,1.19705472,20908.0,20907.0,0.009466]
[1673802718896,1.51762372,20908.0,20907.0,0.009466]
[1673802719215,0.02838269,20908.0,20907.0,1.31203329]
[1673802719427,0.02838269,20908.0,20907.0,1.33254129]
[1673802719712,0.00361238,20908.0,20907.0,1.47580216]
[1673802719969,0.00353113,20908.0,20907.0,1.46827216]
[1673802720243,0.00353113,20908.0,20907.0,1.77927216]
[1673802720521,0.00353113,20908.0,20907.0,1.98609427]
[1673802720777,0.00353113,20908.0,20907.0,2.09709654]
[1673802721032,0.00353113,20908.0,20907.0,2.31867754]
[1673802721887,0.00353113,20908.0,20907.0,2.20767754]
[1673802722608,0.00353113,20908.0,20907.0,2.00797604]
[1673802722905,0.00353113,20908.0,20907.0,2.14317443]
[1673802723194,0.00353113,20908.0,20907.0,2.03217443]
[1673802723412,0.00353113,20908.0,20907.0,2.14317443]
[1673802723667,0.00353113,20908.0,20907.0,1.72708593]
[1673802723928,0.11670113,20908.0,20907.0,1.5756082]
[1673802724190,0.11670113,20908.0,20907.0,1.5551002]
[1673802724441,0.00353113,20908.0,20907.0,1.5551002]
[1673802724699,0.00353113,20908.0,20907.0,1.5756082]
[1673802724962,0.11670113,20908.0,20907.0,1.5551002]
[1673802725221,0.00353113,20908.0,20907.0,1.8551002]
[1673802725478,0.00353113,20908.0,20907.0,1.8756082]
[1673802725799,0.00353113,20908.0,20907.0,1.5756082]
[1673802726001,0.00353113,20908.0,20907.0,1.8756082]
[1673802726248,0.00353113,20908.0,20907.0,1.0767922]
[1673802726249,0.11670113,20908.0,20907.0,1.0767922]
[1673802726508,0.11670113,20908.0,20907.0,0.112936]
[1673802728375,0.00353113,20908.0,20907.0,0.112936]
[1673802732868,0.00353113,20908.0,20907.0,0.611752]
[1673802733127,0.00353113,20908.0,20907.0,0.591244]
[1673802733387,0.00353113,20908.0,20907.0,1.30606033]
[1673802733636,0.00353113,20908.0,20907.0,1.00606033]
[1673802733901,0.00353113,20908.0,20907.0,1.78436833]
[1673802734160,0.00353113,20908.0,20907.0,1.76386033]
[1673802734417,0.00353113,20908.0,20907.0,1.90683806]
[1673802734691,0.00353113,20908.0,20907.0,1.90636806]
[1673802734923,0.00353113,20908.0,20907.0,1.92687606]
[1673802735433,0.00353113,20908.0,20907.0,1.92738606]
[1673802736211,0.00353113,20908.0,20907.0,1.85869813]
[1673802736477,0.00353113,20908.0,20907.0,2.42852689]
[1673802736746,0.00353113,20908.0,20907.0,2.14202373]
[1673802738007,0.00353113,20908.0,20907.0,2.42852689]
[1673802738271,0.00353113,20908.0,20907.0,1.7157204]
[1673802738606,0.00353113,20908.0,20907.0,2.14503645]
[1673802738809,0.00353113,20908.0,20907.0,1.85882194]
[1673802739063,0.00353113,20908.0,20907.0,2.05882194]
[1673802740361,0.00353113,20908.0,20907.0,1.94782194]
[1673802740619,0.00353113,20908.0,20907.0,2.05882194]
[1673802740860,0.00353113,20908.0,20907.0,2.30455308]
[1673802741119,0.00353113,20908.0,20907.0,2.41555308]
[1673802741688,0.00353113,20908.0,20907.0,2.05882194]
[1673802741936,0.00353113,20908.0,20907.0,2.79553149]
[1673802742193,0.00353113,20908.0,20907.0,2.05882194]
[1673802742504,0.00343555,20908.0,20907.0,2.29542301]
[1673802742726,0.00343555,20908.0,20907.0,2.58157322]
[1673802742981,0.00343555,20908.0,20907.0,2.22358563]
[1673802743794,0.00343555,20908.0,20907.0,2.15205729]
[1673802744005,0.00343555,20908.0,20907.0,1.68682374]
[1673802744254,0.00343555,20908.0,20907.0,2.04481133]
[1673802744503,0.00343555,20908.0,20907.0,2.4473802]
[1673802745036,0.00343555,20908.0,20907.0,2.04481133]
[1673802745280,0.00343555,20908.0,20907.0,2.34481133]
[1673802746058,0.00343555,20908.0,20907.0,2.05866112]
[1673802746843,0.00343555,20908.0,20907.0,2.39686334]
[1673802747342,0.00343555,20908.0,20907.0,2.50786334]
[1673802747594,0.00343555,20908.0,20907.0,2.05866112]
[1673802748147,0.00343555,20908.0,20907.0,2.39347874]
[1673802748368,0.00343555,20908.0,20907.0,2.05866112]
[1673802748656,0.00343555,20908.0,20907.0,2.67890681]
[1673802749022,0.00343555,20908.0,20907.0,2.43191922]
[1673802749232,0.00343555,20908.0,20907.0,2.67890681]
[1673802749495,0.00343555,20908.0,20907.0,2.78990681]
[1673802749799,0.00343555,20908.0,20907.0,2.78939681]
[1673802750068,0.00343555,20908.0,20907.0,2.78938114]
[1673802750352,0.00343555,20908.0,20907.0,2.5033132]
[1673802750862,0.00343555,20908.0,20907.0,2.5044432]
[1673802751372,0.00343555,20908.0,20907.0,2.05928112]
[1673802751947,0.00343555,20908.0,20907.0,1.70129353]
[1673802752202,0.00343555,20908.0,20907.0,1.94737417]
[1673802752459,0.00343555,20908.0,20907.0,2.05837417]
[1673802752719,0.00343555,20908.0,20907.0,2.23351497]
[1673802753027,0.00343555,20908.0,20907.0,2.05837417]
[1673802753292,0.00343555,20908.0,20907.0,2.23351758]
[1673802753543,0.00343555,20908.0,20907.0,2.35837417]
[1673802754062,0.00333704,20908.0,20907.0,2.35837417]
[1673802754374,0.00333704,20908.0,20907.0,2.64451837]
[1673802754653,0.00333704,20908.0,20907.0,1.74791326]
[1673802754935,0.00333704,20908.0,20907.0,2.35988764]
[1673802755164,0.00333704,20908.0,20907.0,1.85891326]
[1673802755724,0.00333704,20908.0,20907.0,2.05891326]
[1673802756194,0.00333704,20908.0,20907.0,2.45389249]
[1673802756704,0.00333704,20908.0,20907.0,2.13661326]
[1673802756964,0.00333704,20908.0,20907.0,2.05891326]
[1673802757224,0.00333704,20908.0,20907.0,1.81559353]
[1673802757738,0.00333704,20908.0,20907.0,2.61020311]
[1673802757998,0.00333704,20908.0,20907.0,2.1733902]
[1673802758280,0.00333704,20908.0,20907.0,2.0623902]
[1673802758509,0.00333704,20908.0,20907.0,2.1733902]
[1673802758763,0.00333704,20908.0,20907.0,2.18894342]
[1673802759029,0.00333704,20908.0,20907.0,1.81559353]
[1673802759333,0.00333704,20908.0,20907.0,2.22543478]
[1673802759566,0.00333704,20908.0,20907.0,1.81559353]
[1673802759814,0.00333704,20908.0,20907.0,2.2209437]
[1673802761423,0.00333704,20908.0,20907.0,2.0209437]
[1673802761667,0.00333704,20908.0,20907.0,2.37887127]
[1673802761931,0.00333704,20908.0,20907.0,2.66522105]
[1673802762415,0.00333704,20908.0,20907.0,2.37887127]
[1673802762659,0.00333704,20908.0,20907.0,2.66523711]
[1673802763407,0.00333704,20908.0,20907.0,2.55093711]
[1673802764137,0.23229704,20908.0,20907.0,1.38707839]
[1673802764390,0.82112449,20908.0,20907.0,1.53027771]
[1673802764653,1.14169349,20908.0,20907.0,1.070212]
[1673802764891,1.82519349,20908.0,20907.0,1.070212]
[1673802765138,1.50462449,20908.0,20907.0,1.069082]
[1673802765867,0.68683704,20908.0,20907.0,1.73375243]
[1673802766109,0.68683704,20908.0,20907.0,2.19360813]
[1673802766348,0.68683704,20908.0,20907.0,2.09174461]
[1673802766583,0.68683704,20908.0,20907.0,2.47997304]
[1673802766836,0.68683704,20908.0,20907.0,2.35765379]
[1673802767099,0.68683704,20908.0,20907.0,2.33714579]
[1673802767348,0.68683704,20908.0,20907.0,2.35765379]
[1673802767614,0.68683704,20908.0,20907.0,2.33714579]
[1673802767865,0.68683704,20908.0,20907.0,2.35765379]
[1673802768087,0.68683704,20908.0,20907.0,2.5007885]
[1673802768409,0.68683704,20908.0,20907.0,2.21442266]
[1673802768879,0.68683704,20908.0,20907.0,2.19391466]
[1673802769686,0.68683704,20908.0,20907.0,2.48032093]
[1673802770226,0.68683704,20908.0,20907.0,2.33729491]
[1673802770484,0.68683704,20908.0,20907.0,2.05083358]
[1673802771002,0.68683704,20908.0,20907.0,2.1940686]
[1673802771244,0.68683704,20908.0,20907.0,2.33729491]
[1673802772315,0.68683704,20908.0,20907.0,2.12244842]
[1673802772796,0.68683704,20908.0,20907.0,2.33732587]
[1673802773044,0.68683704,20908.0,20907.0,1.53757699]
[1673802773302,0.68683704,20908.0,20907.0,1.39432204]
[1673802773621,0.68683704,20908.0,20907.0,1.43571404]
[1673802773842,0.68683704,20908.0,20907.0,1.53936036]
[1673802774307,0.68683704,20908.0,20907.0,1.53923049]
[1673802774823,0.68683704,20908.0,20907.0,1.83923049]
[1673802775334,0.68683704,20908.0,20907.0,1.98243723]
[1673802775599,0.68683704,20908.0,20907.0,1.6959759]
[1673802775907,0.68683704,20908.0,20907.0,1.98243723]
[1673802776620,0.68683704,20908.0,20907.0,1.9828093]
[1673802777123,0.68683704,20908.0,20907.0,2.39136498]
[1673802777893,0.68683704,20908.0,20907.0,2.10490365]
[1673802778908,0.68683704,20908.0,20907.0,2.14450254]
[1673802779422,0.68683704,20908.0,20907.0,2.24811675]
[1673802779937,0.68683704,20908.0,20907.0,2.39133287]
[1673802780194,0.68683704,20908.0,20907.0,2.10449947]
[1673802780444,0.68683704,20908.0,20907.0,1.94774093]
[1673802780714,0.68683704,20908.0,20907.0,1.62924927]
[1673802782528,0.68683704,20908.0,20907.0,1.92924927]
[1673802782773,0.68683704,20908.0,20907.0,2.14412672]
[1673802783017,0.68683704,20908.0,20907.0,1.62924927]
[1673802783830,0.68683704,20908.0,20907.0,2.24710084]
[1673802784079,0.68683704,20908.0,20907.0,2.14412672]
[1673802784337,0.68683704,20908.0,20907.0,2.24709766]
[1673802785648,0.68683704,20908.0,20907.0,2.2470829]
[1673802786962,0.68683704,20908.0,20907.0,2.14411196]
[1673802787220,0.68683704,20908.0,20907.0,2.39058329]
[1673802788007,0.68683704,20908.0,20907.0,2.53363341]
[1673802788260,0.68683704,20908.0,20907.0,2.17570584]
[1673802788784,0.68683704,20908.0,20907.0,2.53363341]
[1673802789549,0.68683704,20908.0,20907.0,2.39049489]
[1673802790830,0.68683704,20908.0,20907.0,2.25013118]
[1673802792112,0.68683704,20908.0,20907.0,2.27063918]
[1673802793089,0.68683704,20908.0,20907.0,2.25013118]
[1673802797656,0.68683704,20908.0,20907.0,2.27063918]
[1673802798141,0.68683704,20908.0,20907.0,2.25013118]
[1673802798396,0.68683704,20908.0,20907.0,1.91271161]
[1673802798646,0.68683704,20908.0,20907.0,2.25034931]
[1673802798899,0.68683704,20908.0,20907.0,1.91271161]
[1673802799671,0.68683704,20908.0,20907.0,1.89220361]
[1673802800173,0.68683704,20908.0,20907.0,1.91271161]
[1673802800942,0.68683704,20908.0,20907.0,1.89220361]
[1673802801719,0.68683704,20908.0,20907.0,1.91271161]
[1673802802730,0.68683704,20908.0,20907.0,1.89220361]
[1673802802989,0.68683704,20908.0,20907.0,2.25027914]
[1673802806272,0.68683704,20908.0,20907.0,2.53686162]
[1673802806527,0.68683704,20908.0,20907.0,2.17878609]
[1673802807300,0.68683704,20908.0,20907.0,2.53686162]
[1673802807796,0.68683704,20908.0,20907.0,1.87878609]
[1673802808042,0.68683704,20908.0,20907.0,2.23686162]
[1673802808301,0.68683704,20908.0,20907.0,2.09375011]
[1673802808550,1.00740604,20908.0,20907.0,2.08525011]
[1673802808833,1.00740604,20908.0,20907.0,1.79866763]
[1673802809088,1.00740604,20908.0,20907.0,1.38715285]
[1673802809567,1.00740604,20908.0,20907.0,1.67373533]
[1673802809785,0.68677626,20908.0,20907.0,1.68223533]
[1673802810034,1.00734526,20908.0,20907.0,1.68223533]
[1673802810529,0.68677626,20908.0,20907.0,1.68223533]
[1673802811748,0.68677626,20908.0,20907.0,1.98223533]
[1673802812878,0.68677626,20908.0,20907.0,1.68223533]
[1673802813146,1.00734526,20908.0,20907.0,1.68223533]
[1673802813699,0.68677626,20908.0,20907.0,1.98223533]
[1673802814990,0.68677626,20908.0,20907.0,1.76727131]
[1673802815239,0.68677626,20908.0,20907.0,2.12534684]
[1673802818649,0.68677626,20908.0,20907.0,2.12526545]
[1673802819970,0.68677626,20908.0,20907.0,1.76718992]
[1673802820206,1.09761279,20908.0,20907.0,1.20373219]
[1673802820470,1.09761279,20908.0,20907.0,0.59891474]
[1673802820471,1.09861279,20908.0,20907.0,0.59891474]
[1673802820719,1.09861279,20908.0,20907.0,0.74216013]
[1673802820720,1.41918179,20908.0,20907.0,0.74216013]
[1673802821270,1.09861279,20908.0,20907.0,0.74216013]
[1673802821537,1.09861279,20908.0,20907.0,1.5396404]
[1673802821798,1.09861279,20908.0,20907.0,1.4353184]
[1673802822512,0.68777626,20908.0,20907.0,1.98295531]
[1673802822516,0.68777626,20908.0,20907.0,2.391926]
[1673802823038,0.68777626,20908.0,20907.0,2.39184554]
[1673802823298,0.68777626,20908.0,20907.0,2.17707573]
[1673802823564,0.68777626,20908.0,20907.0,2.39181638]
[1673802824089,0.68777626,20908.0,20907.0,2.53515126]
[1673802824649,0.68777626,20908.0,20907.0,2.24856878]
[1673802824899,0.68777626,20908.0,20907.0,2.26907678]
[1673802825172,0.68777626,20908.0,20907.0,2.24856878]
[1673802825440,0.68777626,20908.0,20907.0,2.5348876]
[1673802825701,0.68777626,20908.0,20907.0,2.24856878]
[1673802827034,0.68777626,20908.0,20907.0,2.53489536]
[1673802828093,0.68777626,20908.0,20907.0,2.17681983]
[1673802828355,0.68777626,20908.0,20907.0,2.53489536]
[1673802829422,0.68777626,20908.0,20907.0,2.17681983]
[1673802829684,0.68777626,20908.0,20907.0,2.53489536]
[1673802829938,0.68777626,20908.0,20907.0,2.39156827]
[1673802830499,0.68777626,20908.0,20907.0,2.39153639]
[1673802831533,0.00427626,20908.0,20907.0,1.9825657]
[1673802831768,0.00427626,20908.0,20907.0,2.08810609]
[1673802832006,0.00427626,20908.0,20907.0,2.1061445]
[1673802833322,0.00427626,20908.0,20907.0,1.61573056]
[1673802834358,0.00427626,20908.0,20907.0,2.02200286]
[1673802834612,0.00427626,20908.0,20907.0,1.61573056]
[1673802834873,0.00427626,20908.0,20907.0,2.02191901]
[1673802835124,0.00427626,20908.0,20907.0,2.02355514]
[1673802835371,0.00427626,20908.0,20907.0,2.3812124]
[1673802836399,0.11744626,20908.0,20907.0,2.40904832]
[1673802836685,0.43801526,20908.0,20907.0,1.42648617]
[1673802836912,0.43801526,20908.0,20907.0,1.21183829]
[1673802837173,0.43801526,20908.0,20907.0,1.51189404]
[1673802837429,0.43801526,20908.0,20907.0,1.36877849]
[1673802837651,0.43801526,20908.0,20907.0,1.51189053]
[1673802837902,0.43801526,20908.0,20907.0,1.52039053]
[1673802839132,0.32484526,20908.0,20907.0,1.52039053]
[1673802839429,0.19636008,20908.0,20907.0,1.37742425]
[1673802839676,0.19636008,20908.0,20907.0,1.52060236]
[1673802839930,0.00417508,20908.0,20907.0,1.37742425]
[1673802840441,0.00417508,20908.0,20907.0,1.96360568]
[1673802840695,0.00417508,20908.0,20907.0,1.66360568]
[1673802840948,0.32474408,20908.0,20907.0,1.66360568]
[1673802841208,0.32474408,20908.0,20907.0,2.44296225]
[1673802841466,0.00417508,20908.0,20907.0,2.44296225]
[1673802841714,0.00400108,20908.0,20907.0,2.22831437]
[1673802841957,0.00400108,20908.0,20907.0,2.44310811]
[1673802842236,0.00400108,20908.0,20907.0,2.22831437]
[1673802842499,0.00400108,20908.0,20907.0,2.58597163]
[1673802842756,0.00400108,20908.0,20907.0,2.2997902]
[1673802843038,0.00400108,20908.0,20907.0,1.94213294]
[1673802843560,0.00400108,20908.0,20907.0,2.30014911]
[1673802844318,0.00400108,20908.0,20907.0,2.58654994]
[1673802845339,0.00400108,20908.0,20907.0,2.22853377]
[1673802846096,0.00400108,20908.0,20907.0,2.58654994]
[1673802846596,0.00400108,20908.0,20907.0,2.22853377]
[1673802847098,0.00400108,20908.0,20907.0,2.58654994]
[1673802848817,0.00400108,20908.0,20907.0,2.58640418]
[1673802849062,0.00400108,20908.0,20907.0,2.22838801]
[1673802849311,0.00400108,20908.0,20907.0,2.44325037]
[1673802850063,0.00400108,20908.0,20907.0,2.44324931]
[1673802850314,0.00400108,20908.0,20907.0,2.22838801]
[1673802850572,0.00400108,20908.0,20907.0,2.44327035]
[1673802850821,0.00400108,20908.0,20907.0,2.22838801]
[1673802851363,0.00400108,20908.0,20907.0,2.58640418]
[1673802852447,0.00400108,20908.0,20907.0,2.30000335]
[1673802852733,0.00400108,20908.0,20907.0,2.58670695]
[1673802853575,0.00400108,20908.0,20907.0,2.22869078]
[1673802854596,0.00400108,20908.0,20907.0,2.58670695]
[1673802855881,0.00400108,20908.0,20907.0,2.30014911]
[1673802856385,0.00400108,20908.0,20907.0,2.58679371]
[1673802856606,0.00400108,20908.0,20907.0,2.30014911]
[1673802857105,0.00400108,20908.0,20907.0,2.58680284]
[1673802857599,0.00400108,20908.0,20907.0,2.30014911]
[1673802859622,0.00400108,20908.0,20907.0,2.58670127]
[1673802861459,0.00400108,20908.0,20907.0,2.30014911]
[1673802861940,0.00391231,20908.0,20907.0,2.30014911]
[1673802862225,0.11708231,20908.0,20907.0,1.9286224]
[1673802862437,0.11708231,20908.0,20907.0,2.00033737]
[1673802862700,0.43765131,20908.0,20907.0,2.28697259]
[1673802862979,0.11708231,20908.0,20907.0,2.28697259]
[1673802863717,0.11708231,20908.0,20907.0,2.14369495]
[1673802863966,0.43765131,20908.0,20907.0,2.14369495]
[1673802864463,0.11708231,20908.0,20907.0,2.14369495]
[1673802864715,0.00391231,20908.0,20907.0,2.14369495]
[1673802865433,0.00391231,20908.0,20907.0,2.28697259]
[1673802865679,0.32448131,20908.0,20907.0,2.00033737]
[1673802865944,0.32448131,20908.0,20907.0,2.28711835]
[1673802866204,0.00391231,20908.0,20907.0,2.00033737]
[1673802866729,0.32448131,20908.0,20907.0,2.00033737]
[1673802867196,0.32448131,20908.0,20907.0,2.14367688]
[1673802867752,0.32448131,20908.0,20907.0,1.84326343]
[1673802870420,0.32448131,20908.0,20907.0,1.84340919]
[1673802871158,0.00391231,20908.0,20907.0,1.84340919]
[1673802871701,0.32448131,20908.0,20907.0,1.36495543]
[1673802872678,0.43765131,20908.0,20907.0,1.22161592]
[1673802873947,0.43765131,20908.0,20907.0,0.74225935]
[1673802874697,0.32448131,20908.0,20907.0,0.74225935]
[1673802874934,0.00391231,20908.0,20907.0,0.88574462]
[1673802875207,0.00391231,20908.0,20907.0,0.88559886]
[1673802875455,0.11708231,20908.0,20907.0,0.26395135]
[1673802875708,0.87791331,20908.0,20907.0,0.26395135]
[1673802876744,0.55734431,20908.0,20907.0,0.26409711]
[1673802877010,0.44417431,20908.0,20907.0,0.26395135]
[1673802878110,0.76474331,20908.0,20907.0,0.26395135]
[1673802878877,0.63387892,20908.0,20907.0,0.25545135]
[1673802879152,0.63387892,20908.0,20907.0,0.14334461]
[1673802879153,3.74434346,20908.0,20907.0,0.14334461]
[1673802879417,3.75389017,20908.0,20907.0,0.14334461]
[1673802879679,3.98050868,20908.0,20907.0,0.14334461]
[1673802879935,3.53903913,20908.0,20907.0,0.14334461]
[1673802880248,2.92148354,20908.0,20907.0,0.14334461]
[1673802880500,4.56557902,20908.0,20907.0,0.14334461]
[1673802880720,4.27946377,20908.0,20907.0,0.14334461]
[1673802881007,4.50958026,20908.0,20907.0,0.14334461]
[1673802881271,4.60058026,20908.0,20907.0,0.14334461]
[1673802881543,0.30275682,20906.0,20901.0,0.05]
[1673802881842,0.30275682,20906.0,20901.0,0.04]
[1673802881843,0.3421,20902.0,20901.0,0.04]
[1673802882117,0.662669,20902.0,20901.0,0.04]